[Event "Titled Tuesday Blitz August 09 Early 2022"]
[White "Mathieu, Phileas"]
[Black "Wieczorek, Oskar"]
[WhiteFideId "36048410"]
[BlackFideId "1133950"]
[WhiteElo "2138"]
[BlackElo "2302"]
[Result "1-0"]
[Round "09"]
[TimeControl "180+1"]
[Date "2022.08.09"]
[WhiteClock "0:00:04"]
[BlackClock "0:00:05"]

1. e4 {[%clk 0:03:00]}  c5 {[%clk 0:02:57]} 2. Nc3 {[%clk 0:02:58]}  e6 {[%clk 0:02:57]} 3. Nge2 {[%clk 0:02:56]}  Nf6 {[%clk 0:02:53]} 4. e5 {[%clk 0:02:42]}  Ng4 {[%clk 0:02:33]} 5. f4 {[%clk 0:02:34]}  d6 {[%clk 0:01:55]} 6. h3 {[%clk 0:02:27]}  Nh6 {[%clk 0:01:55]} 7. exd6 {[%clk 0:02:26]}  Nc6 {[%clk 0:01:49]} 8. d3 {[%clk 0:02:24]}  Bxd6 {[%clk 0:01:47]} 9. g3 {[%clk 0:02:24]}  O-O {[%clk 0:01:45]} 10. Bg2 {[%clk 0:02:24]}  Nf5 {[%clk 0:01:44]} 11. O-O {[%clk 0:02:24]}  Ncd4 {[%clk 0:01:44]} 12. Ne4 {[%clk 0:02:21]}  Be7 {[%clk 0:01:34]} 13. c3 {[%clk 0:01:57]}  Nxe2+ {[%clk 0:01:30]} 14. Qxe2 {[%clk 0:01:58]}  Bd7 {[%clk 0:01:31]} 15. Be3 {[%clk 0:01:53]}  Nxe3 {[%clk 0:01:11]} 16. Qxe3 {[%clk 0:01:54]}  Bc6 {[%clk 0:01:08]} 17. Nxc5 {[%clk 0:01:33]}  Bxg2 {[%clk 0:01:07]} 18. Kxg2 {[%clk 0:01:33]}  Qd5+ {[%clk 0:01:08]} 19. Ne4 {[%clk 0:01:33]}  f5 {[%clk 0:01:09]} 20. Rfd1 {[%clk 0:01:23]}  Qc6 {[%clk 0:01:01]} 21. Qf3 {[%clk 0:01:12]}  fxe4 {[%clk 0:00:59]} 22. Qxe4 {[%clk 0:01:13]}  Qxe4+ {[%clk 0:00:59]} 23. dxe4 {[%clk 0:01:14]}  Rfd8 {[%clk 0:01:00]} 24. Kf3 {[%clk 0:01:02]}  Kf7 {[%clk 0:01:00]} 25. e5 {[%clk 0:01:01]}  Bc5 {[%clk 0:01:00]} 26. Ke4 {[%clk 0:01:00]}  Ke7 {[%clk 0:00:58]} 27. b4 {[%clk 0:00:59]}  Bf2 {[%clk 0:00:52]} 28. Kf3 {[%clk 0:00:43]}  Bb6 {[%clk 0:00:51]} 29. c4 {[%clk 0:00:43]}  Bd4 {[%clk 0:00:43]} 30. Rab1 {[%clk 0:00:40]}  Rac8 {[%clk 0:00:39]} 31. Rbc1 {[%clk 0:00:19]}  b6 {[%clk 0:00:24]} 32. Ke4 {[%clk 0:00:18]}  Bb2 {[%clk 0:00:25]} 33. Rxd8 {[%clk 0:00:18]}  Rxd8 {[%clk 0:00:26]} 34. Rc2 {[%clk 0:00:19]}  Ba3 {[%clk 0:00:26]} 35. b5 {[%clk 0:00:12]}  Bc5 {[%clk 0:00:26]} 36. Kf3 {[%clk 0:00:11]}  Rd3+ {[%clk 0:00:26]} 37. Kg4 {[%clk 0:00:11]}  Kf7 {[%clk 0:00:25]} 38. h4 {[%clk 0:00:11]}  g6 {[%clk 0:00:24]} 39. Kh3 {[%clk 0:00:10]}  h5 {[%clk 0:00:23]} 40. Kg2 {[%clk 0:00:10]}  Ke7 {[%clk 0:00:23]} 41. Kh3 {[%clk 0:00:09]}  Be3 {[%clk 0:00:20]} 42. Kg2 {[%clk 0:00:09]}  Rd2+ {[%clk 0:00:19]} 43. Rxd2 {[%clk 0:00:09]}  Bxd2 {[%clk 0:00:20]} 44. a4 {[%clk 0:00:09]}  Kd7 {[%clk 0:00:17]} 45. Kf3 {[%clk 0:00:09]}  Be1 {[%clk 0:00:17]} 46. Kg2 {[%clk 0:00:09]}  Kc7 {[%clk 0:00:18]} 47. Kh3 {[%clk 0:00:10]}  Kb7 {[%clk 0:00:17]} 48. Kg2 {[%clk 0:00:10]}  a6 {[%clk 0:00:16]} 49. Kh3 {[%clk 0:00:11]}  a5 {[%clk 0:00:14]} 50. Kg2 {[%clk 0:00:10]}  Kc7 {[%clk 0:00:14]} 51. Kf3 {[%clk 0:00:10]}  Kd7 {[%clk 0:00:15]} 52. Kg2 {[%clk 0:00:11]}  Ke7 {[%clk 0:00:15]} 53. Kf3 {[%clk 0:00:12]}  Kf7 {[%clk 0:00:16]} 54. Kg2 {[%clk 0:00:02]}  g5 {[%clk 0:00:13]} 55. hxg5 {[%clk 0:00:02]}  Kg6 {[%clk 0:00:14]} 56. Kf3 {[%clk 0:00:03]}  Kf5 {[%clk 0:00:14]} 57. c5 {[%clk 0:00:03]}  bxc5 {[%clk 0:00:04]} 58. b6 {[%clk 0:00:04]}  c4 {[%clk 0:00:05]} 59. b7 {[%clk 0:00:04]} 1-0


[Site "https://www.chess.com"]

[Event "Titled Tuesday Blitz August 09 Early 2022"]
[White "Najdin, Danil"]
[Black "Rostomyan, Mikayel"]
[WhiteFideId "4172426"]
[BlackFideId "13313754"]
[WhiteElo "2240"]
[BlackElo "1426"]
[Result "1-0"]
[Round "09"]
[TimeControl "180+1"]
[Date "2022.08.09"]
[WhiteClock "0:00:25"]
[BlackClock "0:00:13"]

1. Nf3 {[%clk 0:02:50]}  d5 {[%clk 0:02:59]} 2. d4 {[%clk 0:02:48]}  Bf5 {[%clk 0:02:58]} 3. c4 {[%clk 0:02:44]}  e6 {[%clk 0:02:58]} 4. Qb3 {[%clk 0:02:43]}  Nc6 {[%clk 0:02:58]} 5. Qxb7 {[%clk 0:02:43]}  Nb4 {[%clk 0:02:57]} 6. Na3 {[%clk 0:02:41]}  Rb8 {[%clk 0:02:55]} 7. Qxa7 {[%clk 0:02:41]}  Ra8 {[%clk 0:02:55]} 8. Qb7 {[%clk 0:02:40]}  Rxa3 {[%clk 0:02:55]} 9. bxa3 {[%clk 0:02:25]}  Nc2+ {[%clk 0:02:54]} 10. Kd1 {[%clk 0:02:21]}  Nxa1 {[%clk 0:02:54]} 11. Ne5 {[%clk 0:02:14]}  Bd6 {[%clk 0:02:46]} 12. Nc6 {[%clk 0:02:01]}  Bc2+ {[%clk 0:02:21]} 13. Ke1 {[%clk 0:01:59]}  Nf6 {[%clk 0:01:40]} 14. Nxd8 {[%clk 0:01:54]}  O-O {[%clk 0:01:40]} 15. Nc6 {[%clk 0:01:38]}  dxc4 {[%clk 0:01:35]} 16. f3 {[%clk 0:01:32]}  Ba4 {[%clk 0:01:30]} 17. Bb2 {[%clk 0:01:19]}  Nc2+ {[%clk 0:01:26]} 18. Kf2 {[%clk 0:01:10]}  Bf4 {[%clk 0:01:23]} 19. e4 {[%clk 0:01:03]}  Be3+ {[%clk 0:01:22]} 20. Kg3 {[%clk 0:01:03]}  Nh5+ {[%clk 0:01:21]} 21. Kh4 {[%clk 0:01:02]}  f5 {[%clk 0:00:50]} 22. Bxc4 {[%clk 0:00:57]}  Kf7 {[%clk 0:00:32]} 23. Qxc7+ {[%clk 0:00:51]}  Kg6 {[%clk 0:00:32]} 24. Bxe6 {[%clk 0:00:36]}  Kh6 {[%clk 0:00:19]} 25. Bxf5 {[%clk 0:00:33]}  g5+ {[%clk 0:00:15]} 26. Kg4 {[%clk 0:00:33]}  Bf4 {[%clk 0:00:13]} 27. Qxh7# {[%clk 0:00:25]} 1-0


[Site "https://www.chess.com"]

[Event "Titled Tuesday Blitz August 09 Early 2022"]
[White "Namitbir Singh Walia"]
[Black "Solon, Nathan"]
[WhiteFideId "35071068"]
[BlackFideId "2017229"]
[WhiteElo "1664"]
[BlackElo "2633"]
[Result "1-0"]
[Round "09"]
[TimeControl "180+1"]
[Date "2022.08.09"]
[WhiteClock "0:02:20"]
[BlackClock "0:02:10"]

1. d4 {[%clk 0:03:00]}  d5 {[%clk 0:02:57]} 2. c4 {[%clk 0:03:00]}  e6 {[%clk 0:02:57]} 3. Nf3 {[%clk 0:02:57]}  Nf6 {[%clk 0:02:57]} 4. g3 {[%clk 0:02:55]}  dxc4 {[%clk 0:02:57]} 5. Bg2 {[%clk 0:02:54]}  c5 {[%clk 0:02:57]} 6. O-O {[%clk 0:02:48]}  Nc6 {[%clk 0:02:57]} 7. dxc5 {[%clk 0:02:41]}  Qxd1 {[%clk 0:02:57]} 8. Rxd1 {[%clk 0:02:41]}  Bxc5 {[%clk 0:02:57]} 9. Nbd2 {[%clk 0:02:42]}  c3 {[%clk 0:02:58]} 10. bxc3 {[%clk 0:02:42]}  O-O {[%clk 0:02:57]} 11. Nc4 {[%clk 0:02:34]}  Nd5 {[%clk 0:02:22]} 12. Bd2 {[%clk 0:02:26]}  b5 {[%clk 0:02:15]} 13. Nce5 {[%clk 0:02:23]}  Bb7 {[%clk 0:02:10]} 14. Nd7 {[%clk 0:02:20]} 1-0


[Site "https://www.chess.com"]

[Event "Titled Tuesday Blitz August 09 Early 2022"]
[White "Nasir, Zehn"]
[Black "Kuznetsova, Olga"]
[WhiteFideId "2613239"]
[BlackFideId "4191323"]
[WhiteElo "1993"]
[BlackElo "2134"]
[Result "1-0"]
[Round "09"]
[TimeControl "180+1"]
[Date "2022.08.09"]
[WhiteClock "0:00:06"]
[BlackClock "0:00:10"]

1. d4 {[%clk 0:03:00]}  Nf6 {[%clk 0:02:59]} 2. Bf4 {[%clk 0:03:00]}  e6 {[%clk 0:02:55]} 3. e3 {[%clk 0:03:00]}  c5 {[%clk 0:02:55]} 4. c3 {[%clk 0:02:59]}  d5 {[%clk 0:02:56]} 5. Nd2 {[%clk 0:02:59]}  Bd6 {[%clk 0:02:56]} 6. Bg3 {[%clk 0:02:57]}  O-O {[%clk 0:02:56]} 7. Bd3 {[%clk 0:02:57]}  Qc7 {[%clk 0:02:57]} 8. f4 {[%clk 0:02:56]}  cxd4 {[%clk 0:02:54]} 9. cxd4 {[%clk 0:02:55]}  Nc6 {[%clk 0:02:44]} 10. Ngf3 {[%clk 0:02:48]}  Bd7 {[%clk 0:02:35]} 11. O-O {[%clk 0:02:47]}  Rac8 {[%clk 0:02:35]} 12. Ne5 {[%clk 0:02:45]}  Be8 {[%clk 0:02:32]} 13. Bh4 {[%clk 0:02:41]}  Nd7 {[%clk 0:02:32]} 14. Rf3 {[%clk 0:02:33]}  f5 {[%clk 0:02:19]} 15. Rc1 {[%clk 0:02:22]}  Bh5 {[%clk 0:02:11]} 16. a3 {[%clk 0:02:08]}  Ndxe5 {[%clk 0:02:07]} 17. fxe5 {[%clk 0:02:04]}  Be7 {[%clk 0:02:07]} 18. Bf2 {[%clk 0:01:56]}  Qb6 {[%clk 0:01:56]} 19. b4 {[%clk 0:01:50]}  a5 {[%clk 0:01:56]} 20. b5 {[%clk 0:01:35]}  Na7 {[%clk 0:01:39]} 21. Ra1 {[%clk 0:01:21]}  Rc3 {[%clk 0:01:34]} 22. Nb1 {[%clk 0:00:53]}  Rc7 {[%clk 0:01:33]} 23. a4 {[%clk 0:00:51]}  Bxf3 {[%clk 0:01:30]} 24. gxf3 {[%clk 0:00:50]}  Rfc8 {[%clk 0:01:29]} 25. Nd2 {[%clk 0:00:46]}  Ba3 {[%clk 0:01:27]} 26. Qe2 {[%clk 0:00:31]}  Rc1+ {[%clk 0:01:25]} 27. Rxc1 {[%clk 0:00:30]}  Rxc1+ {[%clk 0:01:26]} 28. Kg2 {[%clk 0:00:29]}  Qd8 {[%clk 0:01:15]} 29. h4 {[%clk 0:00:19]}  Nc8 {[%clk 0:01:11]} 30. e4 {[%clk 0:00:19]}  dxe4 {[%clk 0:01:08]} 31. fxe4 {[%clk 0:00:19]}  f4 {[%clk 0:01:08]} 32. Qg4 {[%clk 0:00:17]}  Qe8 {[%clk 0:00:41]} 33. Bc4 {[%clk 0:00:16]}  f3+ {[%clk 0:00:27]} 34. Kxf3 {[%clk 0:00:14]}  Nb6 {[%clk 0:00:17]} 35. Bxe6+ {[%clk 0:00:12]}  Kh8 {[%clk 0:00:18]} 36. d5 {[%clk 0:00:11]}  Bb4 {[%clk 0:00:16]} 37. Be3 {[%clk 0:00:11]}  Rc3 {[%clk 0:00:15]} 38. Ke2 {[%clk 0:00:10]}  Nxa4 {[%clk 0:00:14]} 39. d6 {[%clk 0:00:10]}  Nc5 {[%clk 0:00:13]} 40. Bf5 {[%clk 0:00:08]}  g6 {[%clk 0:00:11]} 41. d7 {[%clk 0:00:05]}  Qd8 {[%clk 0:00:12]} 42. Be6 {[%clk 0:00:05]}  Nxe6 {[%clk 0:00:11]} 43. Qxe6 {[%clk 0:00:06]}  Rc7 {[%clk 0:00:12]} 44. Bg5 {[%clk 0:00:06]}  Qxd7 {[%clk 0:00:12]} 45. Bf6+ {[%clk 0:00:06]}  Qg7 {[%clk 0:00:11]} 46. Qe8+ {[%clk 0:00:06]}  Bf8 {[%clk 0:00:10]} 47. Qxf8# {[%clk 0:00:06]} 1-0


[Site "https://www.chess.com"]

[Event "Titled Tuesday Blitz August 09 Early 2022"]
[White "Niyazgulova, Marina"]
[Black "Bressac, Stephane"]
[WhiteFideId "24142573"]
[BlackFideId "655945"]
[WhiteElo "1986"]
[BlackElo "2339"]
[Result "1-0"]
[Round "09"]
[TimeControl "180+1"]
[Date "2022.08.09"]
[WhiteClock "0:00:11"]
[BlackClock "0:00:10"]

1. d4 {[%clk 0:02:57]}  d6 {[%clk 0:03:00]} 2. Nf3 {[%clk 0:02:55]}  Nf6 {[%clk 0:03:00]} 3. c4 {[%clk 0:02:55]}  Nbd7 {[%clk 0:03:00]} 4. Nc3 {[%clk 0:02:52]}  g6 {[%clk 0:03:01]} 5. e4 {[%clk 0:02:47]}  e5 {[%clk 0:03:01]} 6. Be2 {[%clk 0:02:37]}  Bg7 {[%clk 0:03:00]} 7. O-O {[%clk 0:02:29]}  O-O {[%clk 0:02:59]} 8. Be3 {[%clk 0:02:26]}  Qe7 {[%clk 0:02:55]} 9. dxe5 {[%clk 0:02:24]}  dxe5 {[%clk 0:02:54]} 10. Nd5 {[%clk 0:02:24]}  Qd8 {[%clk 0:02:54]} 11. Qc2 {[%clk 0:02:22]}  c6 {[%clk 0:02:55]} 12. Nxf6+ {[%clk 0:02:21]}  Qxf6 {[%clk 0:02:53]} 13. Rad1 {[%clk 0:02:18]}  Qe7 {[%clk 0:02:51]} 14. c5 {[%clk 0:02:14]}  h6 {[%clk 0:02:37]} 15. b4 {[%clk 0:02:13]}  f5 {[%clk 0:02:36]} 16. Bc4+ {[%clk 0:02:10]}  Kh8 {[%clk 0:02:29]} 17. Rd6 {[%clk 0:02:07]}  f4 {[%clk 0:02:25]} 18. Bc1 {[%clk 0:02:07]}  g5 {[%clk 0:02:17]} 19. Bb2 {[%clk 0:01:59]}  g4 {[%clk 0:02:07]} 20. Re6 {[%clk 0:01:56]}  Qd8 {[%clk 0:01:59]} 21. Nxe5 {[%clk 0:01:50]}  Nxe5 {[%clk 0:01:59]} 22. Rxe5 {[%clk 0:01:44]}  Bxe5 {[%clk 0:01:45]} 23. Bxe5+ {[%clk 0:01:43]}  Kh7 {[%clk 0:01:46]} 24. Rd1 {[%clk 0:01:39]}  Qg5 {[%clk 0:01:38]} 25. Qc3 {[%clk 0:01:33]}  f3 {[%clk 0:01:27]} 26. g3 {[%clk 0:01:30]}  Qg6 {[%clk 0:01:18]} 27. Qe3 {[%clk 0:01:23]}  Re8 {[%clk 0:00:55]} 28. Rd6 {[%clk 0:01:19]}  Be6 {[%clk 0:00:55]} 29. Bxe6 {[%clk 0:00:57]}  Rxe6 {[%clk 0:00:56]} 30. Rd7+ {[%clk 0:00:58]}  Kg8 {[%clk 0:00:57]} 31. Qd4 {[%clk 0:00:51]}  Rae8 {[%clk 0:00:48]} 32. Qc4 {[%clk 0:00:31]}  Kf8 {[%clk 0:00:35]} 33. Bd6+ {[%clk 0:00:30]}  Kg8 {[%clk 0:00:34]} 34. Be5 {[%clk 0:00:22]}  h5 {[%clk 0:00:23]} 35. h3 {[%clk 0:00:19]}  h4 {[%clk 0:00:19]} 36. hxg4 {[%clk 0:00:18]}  hxg3 {[%clk 0:00:19]} 37. fxg3 {[%clk 0:00:18]}  Qxg4 {[%clk 0:00:15]} 38. Rg7+ {[%clk 0:00:17]}  Qxg7 {[%clk 0:00:16]} 39. Bxg7 {[%clk 0:00:17]}  Kxg7 {[%clk 0:00:17]} 40. Qd4+ {[%clk 0:00:17]}  Kg6 {[%clk 0:00:16]} 41. Kf2 {[%clk 0:00:16]}  Rxe4 {[%clk 0:00:15]} 42. Qd3 {[%clk 0:00:17]}  Kg5 {[%clk 0:00:14]} 43. Kxf3 {[%clk 0:00:16]}  R4e6 {[%clk 0:00:14]} 44. Qd2+ {[%clk 0:00:15]}  Kg6 {[%clk 0:00:14]} 45. Qd3+ {[%clk 0:00:15]}  Kg7 {[%clk 0:00:15]} 46. g4 {[%clk 0:00:15]}  Rf8+ {[%clk 0:00:14]} 47. Kg3 {[%clk 0:00:16]}  Rfe8 {[%clk 0:00:15]} 48. Qd4+ {[%clk 0:00:16]}  Kf7 {[%clk 0:00:15]} 49. Kf4 {[%clk 0:00:15]}  Rf6+ {[%clk 0:00:14]} 50. Kg3 {[%clk 0:00:15]}  Re7 {[%clk 0:00:13]} 51. g5 {[%clk 0:00:15]}  Rfe6 {[%clk 0:00:13]} 52. Kf4 {[%clk 0:00:16]}  Kg6 {[%clk 0:00:13]} 53. Qd3+ {[%clk 0:00:15]}  Kg7 {[%clk 0:00:14]} 54. Qd4+ {[%clk 0:00:15]}  Kf7 {[%clk 0:00:14]} 55. Qd3 {[%clk 0:00:15]}  Re1 {[%clk 0:00:11]} 56. Qh7+ {[%clk 0:00:15]}  Ke8 {[%clk 0:00:11]} 57. Qg8+ {[%clk 0:00:15]}  Kd7 {[%clk 0:00:11]} 58. Qc4 {[%clk 0:00:15]}  Kc7 {[%clk 0:00:07]} 59. g6 {[%clk 0:00:15]}  Rg1 {[%clk 0:00:04]} 60. Kf5 {[%clk 0:00:14]}  b5 {[%clk 0:00:02]} 61. Qf4+ {[%clk 0:00:14]}  Kb7 {[%clk 0:00:02]} 62. Kf6 {[%clk 0:00:14]}  Rd7 {[%clk 0:00:02]} 63. Qf5 {[%clk 0:00:14]}  Rgd1 {[%clk 0:00:02]} 64. g7 {[%clk 0:00:13]}  Rd8 {[%clk 0:00:02]} 65. Kf7 {[%clk 0:00:12]}  R1d7+ {[%clk 0:00:03]} 66. Kg6 {[%clk 0:00:12]}  Rc7 {[%clk 0:00:02]} 67. Kh7 {[%clk 0:00:11]}  Rdd7 {[%clk 0:00:03]} 68. Qf6 {[%clk 0:00:10]}  a5 {[%clk 0:00:02]} 69. Kh8 {[%clk 0:00:09]}  Rxg7 {[%clk 0:00:02]} 70. Qxg7 {[%clk 0:00:09]}  Rxg7 {[%clk 0:00:03]} 71. Kxg7 {[%clk 0:00:09]}  axb4 {[%clk 0:00:04]} 72. Kf6 {[%clk 0:00:10]}  Kc7 {[%clk 0:00:05]} 73. Ke7 {[%clk 0:00:10]}  Kc8 {[%clk 0:00:05]} 74. Kd6 {[%clk 0:00:10]}  Kb7 {[%clk 0:00:05]} 75. Kd7 {[%clk 0:00:11]}  Ka6 {[%clk 0:00:05]} 76. Kxc6 {[%clk 0:00:12]}  Ka5 {[%clk 0:00:06]} 77. Kb7 {[%clk 0:00:11]}  b3 {[%clk 0:00:07]} 78. axb3 {[%clk 0:00:11]}  Kb4 {[%clk 0:00:07]} 79. c6 {[%clk 0:00:12]}  Kxb3 {[%clk 0:00:07]} 80. c7 {[%clk 0:00:12]}  b4 {[%clk 0:00:08]} 81. c8=Q {[%clk 0:00:12]}  Ka2 {[%clk 0:00:09]} 82. Qa8+ {[%clk 0:00:12]}  Kb2 {[%clk 0:00:09]} 83. Qh8+ {[%clk 0:00:11]}  Kc2 {[%clk 0:00:09]} 84. Qh7+ {[%clk 0:00:11]}  Kc3 {[%clk 0:00:09]} 85. Qg7+ {[%clk 0:00:11]}  Kc2 {[%clk 0:00:09]} 86. Qg6+ {[%clk 0:00:11]}  Kc3 {[%clk 0:00:09]} 87. Qf6+ {[%clk 0:00:12]}  Kc2 {[%clk 0:00:10]} 88. Qf5+ {[%clk 0:00:12]}  Kc3 {[%clk 0:00:10]} 89. Qc5+ {[%clk 0:00:12]}  Kb3 {[%clk 0:00:10]} 90. Ka6 {[%clk 0:00:13]}  Ka4 {[%clk 0:00:10]} 91. Kb6 {[%clk 0:00:12]}  b3 {[%clk 0:00:10]} 92. Qb5+ {[%clk 0:00:12]}  Ka3 {[%clk 0:00:10]} 93. Qa5+ {[%clk 0:00:13]}  Kb2 {[%clk 0:00:10]} 94. Kc5 {[%clk 0:00:13]}  Kc2 {[%clk 0:00:10]} 95. Qa4 {[%clk 0:00:14]}  Kc3 {[%clk 0:00:10]} 96. Qa3 {[%clk 0:00:14]}  Kc2 {[%clk 0:00:10]} 97. Kc4 {[%clk 0:00:10]}  b2 {[%clk 0:00:10]} 98. Qa2 {[%clk 0:00:11]}  Kc1 {[%clk 0:00:09]} 99. Qa3 {[%clk 0:00:10]}  Kc2 {[%clk 0:00:10]} 100. Qc3+ {[%clk 0:00:11]}  Kb1 {[%clk 0:00:09]} 101. Kb3 {[%clk 0:00:11]}  Ka1 {[%clk 0:00:10]} 102. Qxb2# {[%clk 0:00:11]} 1-0


[Site "https://www.chess.com"]

[Event "Titled Tuesday Blitz August 09 Early 2022"]
[White "Perez Rodriguez, Jennifer"]
[Black "Bashirli, Saadat"]
[WhiteFideId "3507831"]
[BlackFideId "13429990"]
[WhiteElo "2170"]
[BlackElo "1173"]
[Result "1-0"]
[Round "09"]
[TimeControl "180+1"]
[Date "2022.08.09"]
[WhiteClock "0:01:52"]
[BlackClock "0:01:31"]

1. e4 {[%clk 0:03:00]}  c5 {[%clk 0:02:59]} 2. c3 {[%clk 0:03:00]}  Nf6 {[%clk 0:02:58]} 3. e5 {[%clk 0:02:59]}  Nd5 {[%clk 0:02:59]} 4. Nf3 {[%clk 0:03:00]}  Nc6 {[%clk 0:02:58]} 5. d4 {[%clk 0:03:00]}  cxd4 {[%clk 0:02:59]} 6. cxd4 {[%clk 0:03:01]}  d6 {[%clk 0:02:57]} 7. Bc4 {[%clk 0:03:01]}  Nb6 {[%clk 0:02:56]} 8. Bxf7+ {[%clk 0:03:02]}  Kxf7 {[%clk 0:02:55]} 9. e6+ {[%clk 0:02:57]}  Ke8 {[%clk 0:02:41]} 10. d5 {[%clk 0:02:53]}  Nb4 {[%clk 0:02:32]} 11. Nc3 {[%clk 0:02:50]}  g6 {[%clk 0:02:30]} 12. O-O {[%clk 0:02:39]}  Bg7 {[%clk 0:02:29]} 13. Ng5 {[%clk 0:02:30]}  Bf6 {[%clk 0:02:08]} 14. Nf7 {[%clk 0:02:29]}  Qc7 {[%clk 0:01:58]} 15. Nxh8 {[%clk 0:02:29]}  Bxh8 {[%clk 0:01:59]} 16. Qf3 {[%clk 0:02:28]}  Bf6 {[%clk 0:01:58]} 17. Bg5 {[%clk 0:02:21]}  Nc2 {[%clk 0:01:51]} 18. Bxf6 {[%clk 0:02:14]}  exf6 {[%clk 0:01:46]} 19. Rac1 {[%clk 0:02:12]}  Nd4 {[%clk 0:01:43]} 20. Qxf6 {[%clk 0:02:11]}  Qe7 {[%clk 0:01:43]} 21. Qxd4 {[%clk 0:02:11]}  Bxe6 {[%clk 0:01:37]} 22. Rfe1 {[%clk 0:02:06]}  Qg5 {[%clk 0:01:34]} 23. Rxe6+ {[%clk 0:02:05]}  Kd7 {[%clk 0:01:33]} 24. Rce1 {[%clk 0:02:02]}  Kd8 {[%clk 0:01:34]} 25. Qh8+ {[%clk 0:01:59]}  Kd7 {[%clk 0:01:34]} 26. Qg7+ {[%clk 0:02:00]}  Kc8 {[%clk 0:01:33]} 27. Re8+ {[%clk 0:01:59]}  Qd8 {[%clk 0:01:30]} 28. Rxd8+ {[%clk 0:01:59]}  Kxd8 {[%clk 0:01:31]} 29. Qe7+ {[%clk 0:01:55]}  Kc8 {[%clk 0:01:31]} 30. Qe8+ {[%clk 0:01:53]}  Kc7 {[%clk 0:01:30]} 31. Re7+ {[%clk 0:01:54]}  Nd7 {[%clk 0:01:29]} 32. Qxd7+ {[%clk 0:01:55]}  Kb6 {[%clk 0:01:30]} 33. Qxb7+ {[%clk 0:01:55]}  Kc5 {[%clk 0:01:31]} 34. Qc6+ {[%clk 0:01:52]} 1-0


[Site "https://www.chess.com"]

[Event "Titled Tuesday Blitz August 09 Early 2022"]
[White "Petrova, Irina"]
[Black "Sanchez, Robert"]
[WhiteFideId "14124122"]
[BlackFideId "2034360"]
[WhiteElo "2021"]
[BlackElo "2276"]
[Result "0-1"]
[Round "09"]
[TimeControl "180+1"]
[Date "2022.08.09"]
[WhiteClock "0:00:01"]
[BlackClock "0:00:03"]

1. e4 {[%clk 0:03:00]}  Nc6 {[%clk 0:02:59]} 2. d4 {[%clk 0:03:00]}  d5 {[%clk 0:02:59]} 3. e5 {[%clk 0:02:55]}  Bf5 {[%clk 0:02:59]} 4. c3 {[%clk 0:02:50]}  e6 {[%clk 0:02:59]} 5. h4 {[%clk 0:02:44]}  h5 {[%clk 0:02:55]} 6. Ne2 {[%clk 0:02:40]}  Nge7 {[%clk 0:02:52]} 7. Ng3 {[%clk 0:02:39]}  Bg6 {[%clk 0:02:53]} 8. Bd3 {[%clk 0:02:38]}  Bxd3 {[%clk 0:02:51]} 9. Qxd3 {[%clk 0:02:39]}  g6 {[%clk 0:02:50]} 10. Bg5 {[%clk 0:02:38]}  Qd7 {[%clk 0:02:50]} 11. Bf6 {[%clk 0:02:35]}  Rg8 {[%clk 0:02:47]} 12. Nd2 {[%clk 0:02:34]}  O-O-O {[%clk 0:02:47]} 13. Nb3 {[%clk 0:02:33]}  Kb8 {[%clk 0:02:43]} 14. Nc5 {[%clk 0:02:30]}  Qc8 {[%clk 0:02:43]} 15. a4 {[%clk 0:02:14]}  Bg7 {[%clk 0:02:38]} 16. Bxg7 {[%clk 0:02:08]}  Rxg7 {[%clk 0:02:38]} 17. a5 {[%clk 0:02:08]}  Nf5 {[%clk 0:02:32]} 18. Nxf5 {[%clk 0:02:06]}  gxf5 {[%clk 0:02:30]} 19. g3 {[%clk 0:02:05]}  Rdg8 {[%clk 0:02:25]} 20. Ke2 {[%clk 0:01:55]}  Ka8 {[%clk 0:02:16]} 21. b4 {[%clk 0:01:48]}  Ne7 {[%clk 0:02:07]} 22. b5 {[%clk 0:01:42]}  f4 {[%clk 0:02:05]} 23. gxf4 {[%clk 0:01:24]}  Rg4 {[%clk 0:02:04]} 24. Qf3 {[%clk 0:01:23]}  Ng6 {[%clk 0:02:03]} 25. Nd3 {[%clk 0:01:23]}  Nxh4 {[%clk 0:01:57]} 26. Rxh4 {[%clk 0:01:08]}  Rxh4 {[%clk 0:01:57]} 27. a6 {[%clk 0:01:09]}  b6 {[%clk 0:01:48]} 28. c4 {[%clk 0:01:08]}  Qd7 {[%clk 0:01:18]} 29. Rh1 {[%clk 0:00:58]}  Rxh1 {[%clk 0:01:16]} 30. Qxh1 {[%clk 0:00:59]}  c6 {[%clk 0:01:11]} 31. Nb4 {[%clk 0:00:49]}  c5 {[%clk 0:01:05]} 32. cxd5 {[%clk 0:00:44]}  exd5 {[%clk 0:00:46]} 33. Nxd5 {[%clk 0:00:43]}  Kb8 {[%clk 0:00:46]} 34. Nf6 {[%clk 0:00:40]}  Qxb5+ {[%clk 0:00:45]} 35. Kf3 {[%clk 0:00:30]}  cxd4 {[%clk 0:00:41]} 36. Qc1 {[%clk 0:00:23]}  Rd8 {[%clk 0:00:36]} 37. Nxh5 {[%clk 0:00:16]}  d3 {[%clk 0:00:34]} 38. Nf6 {[%clk 0:00:13]}  d2 {[%clk 0:00:30]} 39. Qd1 {[%clk 0:00:13]}  Qd3+ {[%clk 0:00:20]} 40. Kg2 {[%clk 0:00:13]}  Qxa6 {[%clk 0:00:16]} 41. Ne4 {[%clk 0:00:12]}  Qb7 {[%clk 0:00:15]} 42. f3 {[%clk 0:00:11]}  Qd5 {[%clk 0:00:14]} 43. Nd6 {[%clk 0:00:11]}  Rxd6 {[%clk 0:00:11]} 44. exd6 {[%clk 0:00:12]}  Qxd6 {[%clk 0:00:12]} 45. Kf2 {[%clk 0:00:11]}  Qxf4 {[%clk 0:00:12]} 46. Ke2 {[%clk 0:00:11]}  Qd4 {[%clk 0:00:11]} 47. f4 {[%clk 0:00:07]}  Qxf4 {[%clk 0:00:10]} 48. Qh1 {[%clk 0:00:07]}  Qd4 {[%clk 0:00:09]} 49. Qh2+ {[%clk 0:00:06]}  Kb7 {[%clk 0:00:09]} 50. Qg2+ {[%clk 0:00:06]}  Ka6 {[%clk 0:00:09]} 51. Kd1 {[%clk 0:00:06]}  Ka5 {[%clk 0:00:08]} 52. Qa8 {[%clk 0:00:05]}  b5 {[%clk 0:00:08]} 53. Qb7 {[%clk 0:00:04]}  a6 {[%clk 0:00:06]} 54. Qc7+ {[%clk 0:00:04]}  Ka4 {[%clk 0:00:06]} 55. Qc2+ {[%clk 0:00:04]}  Ka5 {[%clk 0:00:05]} 56. Qc7+ {[%clk 0:00:04]}  Kb4 {[%clk 0:00:05]} 57. Qe7+ {[%clk 0:00:04]}  Qc5 {[%clk 0:00:04]} 58. Qe4+ {[%clk 0:00:03]}  Qc4 {[%clk 0:00:04]} 59. Qe7+ {[%clk 0:00:03]}  Kb3 {[%clk 0:00:04]} 60. Qe3+ {[%clk 0:00:02]}  Qc3 {[%clk 0:00:03]} 61. Qe4 {[%clk 0:00:01]}  Qc1+ {[%clk 0:00:03]} 0-1


[Site "https://www.chess.com"]